bitfinex/quotes_BTCUSD_20220205
["timestamp","ask_amount","ask_price","bid_price","bid_amount"]
[1644057026041,0.04999999,41485.0,41484.0,0.16212414]
[1644057035370,0.04999999,41485.0,41484.0,0.44094766]
[1644057035570,0.04999999,41485.0,41484.0,0.75124844]
[1644057036070,0.04999999,41485.0,41484.0,0.44094766]
[1644057036269,0.04993296,41485.0,41484.0,0.44094766]
[1644057036468,0.04993296,41485.0,41484.0,0.75124844]
[1644057037724,0.04993296,41485.0,41484.0,0.44094766]
[1644057037921,0.04993296,41485.0,41484.0,0.16212414]
[1644057043576,0.32424828,41483.0,41482.0,0.13529874]
[1644057043774,0.11019896,41485.0,41482.0,0.1360456]
[1644057044784,0.11019896,41485.0,41482.0,0.13529874]
[1644057045218,0.11019896,41485.0,41482.0,0.19555874]
[1644057045819,0.11019896,41485.0,41482.0,0.13529874]
[1644057046220,0.11019896,41485.0,41482.0,0.19556074]
[1644057047019,0.11019896,41485.0,41482.0,0.13529874]
[1644057047420,0.01004724,41484.0,41482.0,0.13529874]
[1644057047619,0.13059724,41484.0,41482.0,0.13529874]
[1644057048224,0.19086324,41484.0,41482.0,0.13529874]
[1644057049470,0.331654,41483.0,41482.0,0.13529874]
[1644057049867,0.431654,41483.0,41482.0,0.13529874]
[1644057050667,0.44170124,41483.0,41482.0,0.13529874]
[1644057052368,0.76124512,41483.0,41482.0,0.13529874]
[1644057052820,0.44170124,41483.0,41482.0,0.13529874]
[1644057054423,0.71918615,41483.0,41482.0,0.13529874]
[1644057057078,0.71918615,41483.0,41482.0,0.13029874]
[1644057058279,0.44170124,41483.0,41482.0,0.13029874]
[1644057058678,0.01004724,41483.0,41482.0,0.13029874]
[1644057058878,0.01004724,41483.0,41482.0,0.40645775]
[1644057059283,0.01004724,41484.0,41482.0,0.40645775]
[1644057061118,0.01004724,41484.0,41482.0,0.40145775]
[1644057065569,0.01004724,41484.0,41482.0,0.40136237]
[1644057067268,0.01004724,41484.0,41482.0,0.12520336]
[1644057068519,0.01004724,41484.0,41482.0,0.33296347]
[1644057069219,0.01004724,41484.0,41482.0,0.12520336]
[1644057082468,0.13059224,41484.0,41482.0,0.12520336]
[1644057082731,0.07031724,41484.0,41482.0,0.12520336]
[1644057089674,0.07022928,41484.0,41482.0,0.12520336]
[1644057091428,0.01004724,41484.0,41482.0,0.12520336]
[1644057092231,0.01004724,41484.0,41482.0,0.37398412]
[1644057092731,0.01004724,41484.0,41482.0,0.63247417]
[1644057093532,0.01004724,41484.0,41483.0,0.06026]
[1644057095781,0.06026,41488.0,41484.0,0.75]
[1644057095985,0.0003459,41489.0,41486.0,0.25849005]
[1644057096182,0.02109195,41497.0,41488.0,0.41188607]
[1644057096383,0.02109195,41497.0,41495.0,0.25850107]
[1644057096579,0.20643279,41506.0,41496.0,1.201102]
[1644057096880,0.14519989,41507.0,41503.0,0.23332306]
[1644057097180,0.25671117,41511.0,41505.0,0.30973811]
[1644057097377,0.20677821,41512.0,41505.0,0.451067]
[1644057097580,0.20677821,41515.0,41505.0,0.151067]
[1644057097833,0.04993296,41517.0,41505.0,0.0481]
[1644057098230,0.00078303,41510.0,41505.0,0.0481]
[1644057098436,0.00078303,41510.0,41509.0,0.060213]
[1644057098633,0.00078303,41510.0,41509.0,0.52590047]
[1644057099035,0.04993296,41517.0,41509.0,0.52590047]
[1644057099231,0.00031173,41512.0,41509.0,0.52590047]
[1644057099633,0.00031173,41512.0,41509.0,0.211264]
[1644057099634,0.04993296,41511.0,41509.0,0.211264]
[1644057099833,0.04993296,41511.0,41509.0,0.0481]
[1644057101774,0.04993296,41511.0,41510.0,0.102947]
[1644057102373,0.00031173,41512.0,41510.0,0.102947]
[1644057102573,0.04993296,41515.0,41510.0,0.102947]
[1644057102778,0.04993296,41515.0,41508.0,0.2901029]
[1644057103075,0.00075708,41513.0,41508.0,0.2875029]
[1644057103478,0.00075708,41513.0,41507.0,0.060222]
[1644057103674,0.04993296,41510.0,41507.0,0.060222]
[1644057103875,0.27415135,41517.0,41508.0,0.102949]
[1644057104074,0.00075709,41512.0,41509.0,0.102951]
[1644057104474,0.00075709,41512.0,41508.0,0.102952]
[1644057105074,0.04993296,41514.0,41508.0,0.102952]
[1644057105325,0.04993296,41509.0,41507.0,0.060222]
[1644057105526,0.04993296,41509.0,41508.0,0.102951]
[1644057106133,0.27415135,41517.0,41508.0,0.102951]
[1644057106427,0.04993296,41509.0,41507.0,0.060222]
[1644057106626,0.04993296,41509.0,41508.0,0.102949]
[1644057108428,0.00073698,41511.0,41508.0,0.102949]
[1644057108634,0.04993296,41512.0,41508.0,0.102949]
[1644057109074,0.00073698,41511.0,41508.0,0.102949]
[1644057109480,0.00073698,41511.0,41506.0,0.060226]
[1644057109676,0.00073698,41511.0,41507.0,0.102956]
[1644057109876,0.04993296,41512.0,41507.0,0.102956]
[1644057110076,0.0007393,41511.0,41505.0,0.00611244]
[1644057110280,0.0007393,41511.0,41506.0,0.102958]
[1644057110477,0.0007393,41511.0,41506.0,0.163183]
[1644057111079,0.04993296,41512.0,41506.0,0.163183]
[1644057111385,0.0007393,41511.0,41506.0,0.163183]
[1644057111578,0.0007393,41511.0,41508.0,0.102954]
[1644057111777,0.0007393,41511.0,41510.0,0.060217]
[1644057111977,0.0007393,41511.0,41510.0,0.163164]
[1644057112377,0.02039023,41516.0,41510.0,0.163164]
[1644057112579,0.04993296,41511.0,41510.0,0.060217]
[1644057112824,0.04993296,41511.0,41510.0,0.102946]
[1644057113126,0.00034608,41512.0,41510.0,0.102946]
[1644057113325,0.00073928,41513.0,41511.0,0.102943]
[1644057113523,0.00034608,41515.0,41507.0,0.0481]
[1644057113524,0.05027904,41512.0,41508.0,0.28447888]
[1644057113726,0.04993296,41512.0,41509.0,0.102947]
[1644057113929,0.00073911,41513.0,41510.0,0.060218]
[1644057114126,0.00034608,41512.0,41511.0,0.102942]
[1644057114324,0.00073911,41513.0,41511.0,0.102942]
[1644057114726,0.00034608,41514.0,41511.0,0.102942]
[1644057115025,0.0007391,41514.0,41510.0,0.060218]
[1644057115226,0.00108518,41514.0,41508.0,0.40490788]
[1644057115426,0.00108518,41514.0,41509.0,0.102946]
[1644057115727,0.0007391,41514.0,41509.0,0.102946]
[1644057115925,0.04993296,41515.0,41509.0,0.102946]
[1644057116126,0.00073911,41514.0,41509.0,0.102946]
[1644057116325,0.04993296,41510.0,41509.0,0.102946]
[1644057117380,0.00073914,41512.0,41509.0,0.102946]
[1644057117579,0.04993296,41510.0,41509.0,0.102946]
[1644057117779,0.00073914,41512.0,41509.0,0.102946]
[1644057117978,0.00034608,41511.0,41509.0,0.102946]
[1644057118177,0.00073914,41512.0,41509.0,0.102946]
[1644057118380,0.00034608,41514.0,41509.0,0.060219]
[1644057118580,0.00073913,41512.0,41509.0,0.163167]
[1644057118779,0.04993296,41510.0,41509.0,0.163169]
[1644057118979,0.04993296,41510.0,41509.0,0.10295]
[1644057119185,0.06984603,41506.0,41500.0,0.51]
[1644057119479,0.06984603,41506.0,41501.0,0.102972]
[1644057119680,0.04993296,41502.0,41501.0,0.088772]
[1644057119879,0.00065614,41505.0,41501.0,0.10031888]
[1644057120080,0.03845311,41504.0,41503.0,0.01154688]
[1644057120330,0.03845311,41504.0,41503.0,0.10032388]
[1644057121530,0.00034608,41505.0,41503.0,0.01154688]
[1644057121732,0.00073873,41506.0,41503.0,0.01154688]
[1644057121929,0.03845311,41504.0,41503.0,0.01154688]
[1644057123630,0.03845311,41504.0,41500.0,0.01]
[1644057123831,0.00034608,41505.0,41502.0,0.01154688]
[1644057124077,0.03845311,41505.0,41502.0,0.01154688]
[1644057124280,0.03879919,41505.0,41502.0,0.01154688]
[1644057124679,0.03845311,41505.0,41502.0,0.01154688]
[1644057124878,0.03879919,41505.0,41502.0,0.01154688]
[1644057125079,0.03879919,41505.0,41500.0,0.02154688]
[1644057125278,0.03845311,41501.0,41500.0,0.02154688]
[1644057125479,0.03845311,41501.0,41500.0,0.11032988]
[1644057125881,0.00108486,41503.0,41500.0,0.11032988]
[1644057126081,0.00108486,41503.0,41500.0,0.01]
[1644057126082,0.03845311,41501.0,41500.0,0.01]
[1644057126284,0.32491144,41501.0,41500.0,0.01]
[1644057126786,0.40566808,41501.0,41500.0,0.01]
[1644057126985,0.25750876,41498.0,41491.0,0.23781324]
[1644057127182,0.03845311,41492.0,41490.0,0.01896631]
[1644057127585,0.03845311,41492.0,41487.0,0.53081512]
[1644057127832,0.03845311,41492.0,41488.0,0.088816]
[1644057128534,0.03919289,41492.0,41488.0,0.33371924]
[1644057128933,0.03845311,41491.0,41488.0,0.33371924]
[1644057129535,0.00073979,41492.0,41488.0,0.33371924]
[1644057130337,0.03845311,41491.0,41488.0,0.39396824]
[1644057130538,0.03845311,41491.0,41488.0,0.088816]
[1644057130936,0.00072284,41492.0,41488.0,0.088816]
[1644057131137,0.03845311,41491.0,41488.0,0.088816]
[1644057131778,0.03845311,41491.0,41488.0,0.33353976]
[1644057135727,0.03845311,41491.0,41488.0,0.088816]
[1644057135728,0.2585433,41490.0,41488.0,0.088816]
[1644057135927,0.06767796,41485.0,41484.0,0.00070008]
[1644057136327,0.3,41490.0,41484.0,0.00070008]
[1644057136528,0.03845311,41485.0,41482.0,0.13675024]
[1644057136727,0.03845311,41485.0,41483.0,0.088842]
[1644057137729,0.03845311,41485.0,41482.0,0.12520336]
[1644057137929,0.03845311,41485.0,41482.0,0.12590549]
[1644057138730,0.03845311,41485.0,41483.0,0.088848]
[1644057139475,0.03845311,41485.0,41482.0,0.12520336]
[1644057139680,0.03845311,41485.0,41483.0,0.088848]
[1644057139878,0.38015595,41487.0,41483.0,0.45]
[1644057140077,0.11809569,41487.0,41482.0,0.12520336]
[1644057140279,0.03864547,41487.0,41482.0,0.12520336]
[1644057140477,0.060266,41486.0,41483.0,0.088848]
[1644057142726,0.14746216,41491.0,41483.0,0.088848]
[1644057142926,0.060258,41491.0,41482.0,0.40364557]
[1644057143727,0.060258,41491.0,41482.0,0.40289919]
[1644057143928,0.060258,41491.0,41484.0,0.00074637]
[1644057144328,0.060262,41490.0,41484.0,0.00074637]
[1644057144529,0.060262,41489.0,41484.0,0.00074637]
[1644057145033,0.060262,41489.0,41482.0,0.40289919]
[1644057145228,0.060262,41489.0,41484.0,0.00074496]
[1644057146128,0.060262,41489.0,41482.0,0.40289919]
[1644057146330,0.060262,41489.0,41484.0,0.00074496]
[1644057147381,0.060262,41489.0,41482.0,0.40289919]
[1644057147584,0.060262,41489.0,41484.0,0.00074496]
[1644057147778,0.32004226,41489.0,41484.0,0.00074496]
[1644057148279,0.060262,41489.0,41484.0,0.00074496]
[1644057148481,0.060256,41492.0,41488.0,0.04999999]
[1644057148689,0.00034608,41500.0,41491.0,0.0499286]
[1644057148884,0.00074491,41492.0,41491.0,0.0499286]
[1644057149081,0.00074491,41492.0,41491.0,0.1387536]
[1644057149282,0.00074491,41492.0,41491.0,0.088825]
[1644057149480,0.00074491,41492.0,41491.0,0.138825]
[1644057150329,0.00074491,41494.0,41491.0,0.2593]
[1644057150530,0.00074491,41494.0,41493.0,0.0499286]
[1644057151231,0.00034608,41501.0,41493.0,0.0499286]
[1644057151431,0.00069799,41496.0,41494.0,0.08881]
[1644057151631,0.00069799,41496.0,41495.0,0.120458]
[1644057151831,0.00069799,41496.0,41495.0,0.209263]
[1644057152235,0.08496793,41503.0,41495.0,0.40614809]
[1644057152432,0.25359474,41506.0,41495.0,0.31734309]
[1644057152637,0.00069796,41498.0,41496.0,0.088799]
[1644057152833,0.00069796,41498.0,41494.0,0.0481]
[1644057153033,0.00069796,41498.0,41489.0,0.1]
[1644057153034,0.00069796,41498.0,41487.0,0.25787347]
[1644057153232,0.00069796,41498.0,41486.0,0.20622516]
[1644057153433,0.07691381,41490.0,41486.0,0.20622516]
[1644057153632,0.70559632,41500.0,41489.0,0.21099736]
[1644057153832,0.060255,41493.0,41489.0,0.21099736]
[1644057154876,0.06095617,41493.0,41489.0,0.21099736]
[1644057155281,0.27040816,41492.0,41489.0,0.21099736]
[1644057156877,0.27040816,41492.0,41489.0,0.26092596]
[1644057157478,0.00070275,41493.0,41489.0,0.26092596]
[1644057158035,0.07078693,41492.0,41486.0,0.20622516]
[1644057158226,0.07604294,41493.0,41486.0,0.20622516]
[1644057158425,0.20917822,41495.0,41486.0,0.20622516]
[1644057158626,0.00070135,41492.0,41486.0,0.20622516]
[1644057158826,0.00070135,41492.0,41487.0,0.088827]
[1644057159029,0.00070135,41492.0,41488.0,0.20678052]
[1644057159230,0.00070135,41492.0,41487.0,0.088831]
[1644057159431,0.06889518,41491.0,41486.0,0.20622516]
[1644057159634,0.06889518,41491.0,41485.0,0.20622516]
[1644057159832,0.06889518,41491.0,41484.0,0.20622516]
[1644057160132,0.06889518,41491.0,41484.0,0.20603]
[1644057160730,0.060263,41490.0,41484.0,0.20603]
[1644057160930,0.2815445,41489.0,41484.0,0.20603]
[1644057162179,0.3418045,41489.0,41484.0,0.20681483]
[1644057162482,0.2815445,41489.0,41484.0,0.00078483]
[1644057162681,0.06889518,41491.0,41484.0,0.00078483]
[1644057163280,0.06889518,41491.0,41483.0,0.25787347]
[1644057163480,0.06889518,41491.0,41485.0,0.00078482]
[1644057164079,0.12915018,41491.0,41485.0,0.00078482]
[1644057164485,0.12915018,41491.0,41484.0,0.060254]
[1644057164682,0.12915018,41491.0,41486.0,0.00078481]
[1644057165531,0.12915018,41491.0,41484.0,0.060254]
[1644057165737,0.12915018,41491.0,41486.0,0.00078481]
[1644057166438,0.06889518,41491.0,41486.0,0.06103581]
[1644057166836,0.06889518,41491.0,41486.0,0.060251]
[1644057167033,0.06889518,41491.0,41486.0,0.06103581]
[1644057168036,0.06889518,41491.0,41486.0,0.060251]
[1644057168240,0.06889518,41491.0,41486.0,0.06103581]
[1644057168437,0.06889518,41491.0,41486.0,0.31890928]
[1644057169279,0.06889518,41491.0,41486.0,0.31812447]
[1644057169478,0.06889518,41491.0,41486.0,0.31890928]
[1644057169680,0.06889518,41491.0,41487.0,0.25787347]
[1644057169877,0.060252,41493.0,41487.0,0.25787347]
[1644057170278,0.060252,41493.0,41489.0,0.2064033]
[1644057170677,0.060252,41493.0,41490.0,0.2064033]
[1644057173229,0.060252,41493.0,41491.0,0.2064033]
[1644057174432,0.00078467,41495.0,41492.0,0.2064033]
[1644057174631,0.00078467,41495.0,41493.0,0.2064033]
[1644057175231,0.00034618,41500.0,41493.0,0.2064033]
[1644057175434,0.41871281,41499.0,41496.0,0.21605716]
[1644057175633,0.26946997,41498.0,41496.0,0.21605716]
[1644057176138,0.32971497,41498.0,41496.0,0.21605716]
[1644057176331,0.060245,41498.0,41496.0,0.21605716]
[1644057178580,0.00078425,41499.0,41496.0,0.21605716]
[1644057178884,0.42973388,41501.0,41496.0,0.21605716]
[1644057179079,0.00078425,41499.0,41496.0,0.21605716]
[1644057180080,0.32222683,41501.0,41496.0,0.21605716]
[1644057180329,0.00078424,41500.0,41496.0,0.26598576]
[1644057180528,0.00078424,41500.0,41496.0,0.37432576]
[1644057180928,0.00078424,41500.0,41497.0,0.2064033]
[1644057181328,0.00034618,41501.0,41497.0,0.2064033]
[1644057181532,0.00078423,41501.0,41497.0,0.2064033]
[1644057181729,0.21813144,41501.0,41497.0,0.2064033]
[1644057181931,0.21813144,41501.0,41496.0,0.26415716]
[1644057182230,0.00113041,41501.0,41497.0,0.2064033]
[1644057182430,0.00034618,41501.0,41497.0,0.2064033]
[1644057182631,0.06058618,41502.0,41497.0,0.2064033]
[1644057182831,0.00113041,41501.0,41497.0,0.2064033]
[1644057183033,0.00078423,41501.0,41497.0,0.2064033]
[1644057183232,0.00113041,41501.0,41497.0,0.2064033]
[1644057183632,0.00034618,41501.0,41497.0,0.2064033]
[1644057183835,0.06058618,41502.0,41497.0,0.2064033]
[1644057184382,0.06058618,41502.0,41496.0,0.53079946]
[1644057184782,0.06024,41502.0,41496.0,0.53079946]
[1644057185184,0.00034618,41504.0,41498.0,0.060234]
[1644057185384,0.00034618,41502.0,41498.0,0.060234]
[1644057185584,0.00034618,41505.0,41498.0,0.060234]
[1644057185784,0.00034618,41506.0,41499.0,0.0499286]
[1644057185983,0.39044225,41507.0,41499.0,0.0499286]
[1644057186187,0.26544225,41507.0,41499.0,0.0499286]
[1644057186485,0.00078418,41505.0,41498.0,0.2064033]
[1644057186687,0.00078418,41505.0,41497.0,0.3768663]
[1644057187283,0.00034618,41505.0,41497.0,0.3768663]
[1644057187484,0.0007842,41503.0,41500.0,0.060232]
[1644057188126,0.0007842,41503.0,41498.0,0.01598454]
[1644057188325,0.03401545,41500.0,41497.0,0.3768663]
[1644057188526,0.03401545,41500.0,41498.0,0.10478054]
[1644057190428,0.03401545,41500.0,41498.0,0.088796]
[1644057192177,0.00034618,41505.0,41498.0,0.10478054]
[1644057192178,0.03401545,41499.0,41498.0,0.10478054]
[1644057192977,0.00074717,41501.0,41498.0,0.10478054]
[1644057193182,0.03401545,41499.0,41498.0,0.10478054]
[1644057193377,0.03401545,41499.0,41498.0,0.088796]
[1644057195426,0.03401545,41500.0,41498.0,0.088796]
[1644057195626,0.03401545,41500.0,41499.0,0.01598454]
[1644057195826,0.03401545,41500.0,41499.0,0.10477554]
[1644057196028,0.00074717,41501.0,41499.0,0.10477554]
[1644057196327,0.03401545,41500.0,41499.0,0.149024]
[1644057198532,0.03401545,41501.0,41499.0,0.149024]
[1644057198730,0.03401545,41501.0,41500.0,0.1]
[1644057198983,0.03401545,41501.0,41500.0,0.188787]
[1644057201378,0.03401545,41501.0,41500.0,0.1]
[1644057201679,0.09747567,41501.0,41500.0,0.1]
[1644057205434,0.03401545,41501.0,41500.0,0.1]
[1644057208284,0.00074097,41503.0,41500.0,0.41714327]
[1644057208485,0.00074097,41503.0,41502.0,0.060226]
[1644057208685,0.03475642,41503.0,41502.0,0.060226]
[1644057209184,0.03401545,41503.0,41500.0,0.1]
[1644057210929,0.03401545,41503.0,41500.0,0.160232]
[1644057211331,0.03401545,41503.0,41500.0,0.45218614]
[1644057211534,0.03401545,41503.0,41500.0,0.4362016]
[1644057211734,0.03401545,41503.0,41500.0,0.45218614]
[1644057211931,0.03390641,41503.0,41500.0,0.45229518]
[1644057212132,0.03390641,41503.0,41501.0,0.088782]
[1644057212332,0.03462684,41504.0,41500.0,0.45229518]
[1644057212532,0.03462684,41504.0,41500.0,0.65869848]
[1644057212736,0.03390641,41504.0,41500.0,0.65869848]
[1644057212932,0.03494955,41504.0,41501.0,0.088782]
[1644057213132,0.03460337,41504.0,41501.0,0.088782]
[1644057213334,0.00069696,41504.0,41501.0,0.088782]
[1644057213981,0.00034618,41505.0,41502.0,0.060226]
[1644057214180,0.00069696,41505.0,41502.0,0.060226]
[1644057215079,0.03425259,41506.0,41502.0,0.060226]
[1644057215283,0.03460398,41506.0,41502.0,0.060226]
[1644057215880,0.00069757,41506.0,41502.0,0.07734798]
[1644057216081,0.03287801,41505.0,41502.0,0.07734798]
[1644057217834,0.23824846,41509.0,41502.0,0.11022599]
[1644057218028,0.46162838,41509.0,41502.0,0.11022599]
[1644057218428,0.25486999,41509.0,41502.0,0.060226]
[1644057218628,0.461617,41509.0,41505.0,0.04999999]
[1644057218830,0.04999999,41506.0,41502.0,0.20611116]
[1644057219030,0.03149007,41509.0,41502.0,0.20611116]
[1644057219231,0.22683214,41510.0,41502.0,0.29488916]
[1644057219232,0.04999999,41503.0,41502.0,0.29488916]
[1644057219531,0.04999999,41503.0,41502.0,0.20611116]
[1644057219928,0.04999999,41503.0,41501.0,0.20611116]
[1644057220530,0.04999999,41503.0,41501.0,0.26634316]
[1644057221030,0.04999999,41503.0,41502.0,0.20611116]
[1644057221229,0.04999999,41503.0,41501.0,0.26634316]
[1644057221486,0.04999999,41503.0,41502.0,0.20611116]
[1644057223684,0.04999999,41503.0,41501.0,0.060232]
[1644057223685,0.04999999,41503.0,41501.0,0.26634316]
[1644057231386,0.04999999,41503.0,41502.0,0.20611116]
[1644057232084,0.04999999,41503.0,41501.0,0.060232]
[1644057232739,0.04999999,41503.0,41501.0,2.74018076]
[1644057232942,0.04999999,41503.0,41501.0,2.94626531]
[1644057233543,0.04986299,41503.0,41501.0,2.94626531]
[1644057234444,0.00034615,41506.0,41501.0,2.94626531]
[1644057234644,0.04986299,41502.0,41501.0,2.94626531]
[1644057236345,0.04986299,41502.0,41501.0,2.74018076]
[1644057238386,0.04986299,41502.0,41501.0,0.060232]
[1644057240433,0.04986299,41502.0,41500.0,0.35787347]
[1644057240833,0.04986299,41502.0,41501.0,0.20614353]
[1644057242934,0.04986299,41502.0,41501.0,0.20602525]
[1644057243335,0.04986299,41502.0,41500.0,0.1]
[1644057243534,0.11009899,41502.0,41500.0,0.1]
[1644057244382,0.11009899,41502.0,41501.0,0.000137]
[1644057244383,0.04986299,41502.0,41501.0,0.000137]
[1644057245886,0.04986299,41502.0,41500.0,0.160234]
[1644057247486,0.04986299,41502.0,41501.0,0.088782]
[1644057248129,0.04986299,41505.0,41501.0,0.088782]
[1644057248330,0.04986299,41505.0,41504.0,0.060228]
[1644057248731,0.04986299,41505.0,41500.0,0.06058878]
[1644057248935,0.06057615,41507.0,41500.0,0.06058878]
[1644057249133,0.04999999,41505.0,41503.0,1.98767168]
[1644057249532,0.04999999,41505.0,41500.0,0.31846225]
[1644057249732,0.06057615,41507.0,41500.0,0.31846225]
[1644057249932,0.04999999,41501.0,41500.0,0.37869225]
[1644057251882,0.04999999,41501.0,41500.0,0.12081878]
[1644057253683,0.04999999,41501.0,41500.0,0.66154325]
[1644057254583,0.04999999,41501.0,41500.0,0.12081878]
[1644057255084,0.04999999,41501.0,41500.0,0.32616699]
[1644057255333,0.04999999,41501.0,41500.0,0.32615255]
[1644057257636,0.04999999,41501.0,41500.0,0.12081878]
[1644057258035,0.04999999,41501.0,41500.0,0.32633847]
[1644057258235,0.04999999,41501.0,41500.0,0.26610847]
[1644057260682,0.11023599,41502.0,41500.0,0.26610847]
[1644057260884,0.04999999,41502.0,41500.0,0.26610847]
[1644057261082,0.04999999,41502.0,41500.0,0.32633847]
[1644057263133,0.04999999,41502.0,41500.0,0.26610847]
[1644057263332,0.04999999,41502.0,41500.0,0.06058878]
[1644057263733,0.25682672,41502.0,41500.0,0.06058878]
[1644057264032,0.04999999,41502.0,41500.0,0.06058878]
[1644057264240,0.61298342,41501.0,41500.0,0.06058878]
[1644057264539,0.331643,41501.0,41500.0,0.06058878]
[1644057264735,0.481643,41501.0,41500.0,0.06058878]
[1644057265034,0.781643,41501.0,41500.0,0.06058878]
[1644057265234,0.781643,41501.0,41497.0,0.00078303]
[1644057265235,1.00126434,41500.0,41497.0,0.00078303]
[1644057265436,0.04999999,41498.0,41491.0,0.05]
[1644057265637,0.20681896,41497.0,41489.0,0.20551969]
[1644057265937,0.04999999,41490.0,41489.0,0.20551969]
[1644057266985,0.04999999,41490.0,41488.0,0.20571236]
[1644057267186,0.04999999,41490.0,41488.0,0.20551969]
[1644057267584,0.04999999,41490.0,41489.0,0.20551969]
[1644057267784,0.04999999,41490.0,41488.0,0.20551969]
[1644057267983,0.04999999,41490.0,41488.0,0.20571236]
[1644057268184,0.04999999,41490.0,41488.0,0.20551969]
[1644057268483,0.29433293,41495.0,41488.0,0.26577069]
[1644057268686,0.04999999,41490.0,41489.0,0.20551969]
[1644057268883,0.04999999,41490.0,41489.0,0.20571236]
[1644057269083,0.04999999,41490.0,41489.0,0.20551969]
[1644057269485,0.1222,41498.0,41489.0,0.20551969]
[1644057269486,0.04999999,41492.0,41489.0,0.20551969]
[1644057269688,0.04999999,41492.0,41489.0,0.20571236]
[1644057269886,0.1222,41498.0,41491.0,0.20551969]
[1644057270086,0.04999999,41495.0,41491.0,0.20551969]
[1644057270329,0.04999999,41494.0,41492.0,0.088814]
[1644057270530,0.39916161,41502.0,41492.0,0.0895536]
[1644057270729,0.39916161,41502.0,41494.0,1.88009775]
[1644057270730,0.04999999,41495.0,41494.0,1.88009775]
[1644057270930,0.04999999,41495.0,41494.0,1.96890375]
[1644057272234,0.04999999,41496.0,41494.0,1.96890375]
[1644057272430,0.04999999,41496.0,41495.0,0.14904]
[1644057275383,0.20669627,41507.0,41500.0,0.060231]
[1644057275584,0.26352505,41506.0,41500.0,0.060231]
[1644057276585,0.26352505,41506.0,41504.0,0.2409497]
[1644057277188,0.32375605,41506.0,41504.0,0.2409497]
[1644057277389,0.26631374,41505.0,41504.0,0.2409497]
[1644057278636,0.060231,41506.0,41504.0,0.2409497]
[1644057278837,0.04999999,41505.0,41498.0,0.4676352]
[1644057279035,0.04999999,41499.0,41498.0,0.28694453]
[1644057279235,0.04999999,41499.0,41498.0,0.37573553]
[1644057279634,0.04999999,41499.0,41498.0,0.63323514]
[1644057280436,0.04999999,41499.0,41498.0,0.69346314]
[1644057280636,0.00034617,41507.0,41498.0,0.69346314]
[1644057280837,0.04999999,41499.0,41498.0,0.40651661]
[1644057281040,0.00074396,41508.0,41498.0,0.40651661]
[1644057281339,0.04999999,41503.0,41500.0,0.088784]
[1644057281584,0.04999999,41503.0,41502.0,0.20141228]
[1644057282383,0.04999999,41503.0,41502.0,0.26163628]
[1644057283885,0.04999999,41503.0,41502.0,0.060224]
[1644057285086,0.04999999,41503.0,41499.0,0.06023]
[1644057286936,0.04999999,41501.0,41499.0,0.06023]
[1644057288338,0.04999999,41501.0,41500.0,0.088785]
[1644057289887,0.060226,41507.0,41500.0,0.088785]
[1644057290087,0.00034615,41506.0,41505.0,0.26076961]
[1644057290289,0.04999999,41506.0,41505.0,0.26076961]
[1644057290689,0.04999999,41506.0,41498.0,0.20522966]
[1644057290987,0.00034615,41506.0,41498.0,0.20522966]
[1644057291188,0.04999999,41505.0,41499.0,0.088786]
[1644057291388,0.00034615,41506.0,41498.0,0.20522966]
[1644057291586,0.04999999,41502.0,41499.0,0.40918351]
[1644057292739,0.00034615,41506.0,41500.0,0.30144263]
[1644057292937,0.04999999,41505.0,41501.0,0.149]
[1644057293338,0.04999999,41505.0,41501.0,0.1971]
[1644057293739,0.04999999,41505.0,41501.0,0.25731753]
[1644057293938,0.04999999,41505.0,41502.0,0.088779]
[1644057294139,0.00034615,41507.0,41504.0,0.20455764]
[1644057294443,0.00034615,41506.0,41505.0,0.136869]
[1644057294639,0.00034615,41507.0,41505.0,0.136869]
[1644057294839,0.00073536,41508.0,41505.0,0.136869]
[1644057295040,0.00073536,41508.0,41506.0,0.23132704]
[1644057295041,0.00034615,41507.0,41506.0,0.23132704]
[1644057295239,0.00073536,41508.0,41506.0,0.32009204]
[1644057295439,0.00073536,41508.0,41507.0,0.088762]
[1644057295644,0.00034615,41509.0,41507.0,0.088762]
[1644057295840,0.00073537,41509.0,41508.0,0.120426]
[1644057296040,0.05073536,41509.0,41508.0,0.120426]
[1644057296885,0.04999999,41509.0,41508.0,0.120426]
[1644057297485,0.04999999,41509.0,41508.0,0.209184]
[1644057299191,0.04999999,41509.0,41508.0,0.120426]
[1644057300739,0.049926,41509.0,41508.0,0.120426]
[1644057304789,0.049926,41509.0,41506.0,0.33965104]
[1644057305588,0.05027215,41509.0,41506.0,0.33965104]
[1644057305787,0.049926,41509.0,41506.0,0.33965104]
[1644057305991,0.05027215,41509.0,41506.0,0.33965104]
[1644057306588,0.049926,41509.0,41506.0,0.33965104]
[1644057307189,0.05027215,41509.0,41506.0,0.33965104]
[1644057307934,0.049926,41509.0,41506.0,0.33965104]
[1644057308134,0.05027215,41509.0,41506.0,0.33965104]
[1644057308734,0.05027215,41509.0,41506.0,0.27942704]
[1644057308936,0.18974524,41504.0,41503.0,0.27491632]
[1644057309136,0.18974524,41504.0,41503.0,0.36368632]
[1644057309336,0.23967124,41504.0,41503.0,0.08877]
[1644057309536,0.18974524,41504.0,41503.0,0.08877]
[1644057309937,0.18974524,41504.0,41503.0,0.209213]
[1644057310336,0.18974524,41504.0,41503.0,0.44469714]
[1644057312182,0.18974524,41504.0,41503.0,0.49469714]
[1644057313380,0.18974524,41504.0,41503.0,0.55491242]
[1644057314184,0.18974524,41504.0,41503.0,0.65301242]
[1644057314383,0.18974524,41504.0,41503.0,0.75301242]
[1644057317134,0.18974524,41504.0,41503.0,1.00950425]
[1644057319001,0.049926,41517.0,41507.0,0.018062]
[1644057319190,0.049926,41517.0,41509.0,0.43513005]
[1644057319388,0.049926,41517.0,41510.0,0.50468864]
[1644057319588,0.049926,41517.0,41510.0,0.70920469]
[1644057319790,0.049926,41517.0,41513.0,0.21764932]
[1644057319989,0.049926,41517.0,41514.0,0.4281917]
[1644057321089,0.049926,41517.0,41514.0,0.4883927]
[1644057323139,0.049926,41517.0,41514.0,0.197037]
[1644057323541,0.049926,41517.0,41514.0,0.47437481]
[1644057325140,0.049926,41517.0,41514.0,0.197037]
[1644057326140,0.049926,41517.0,41516.0,0.120398]
[1644057326341,0.049926,41517.0,41516.0,0.257228]
[1644057329589,0.049926,41517.0,41516.0,0.53605178]
[1644057330437,0.049926,41517.0,41516.0,0.257228]
[1644057333644,0.049926,41517.0,41516.0,0.53475854]
[1644057338936,0.049926,41517.0,41515.0,0.05]
[1644057339137,0.049926,41517.0,41514.0,0.00611151]
[1644057339338,0.05027203,41517.0,41514.0,0.00611151]
[1644057339535,0.049926,41517.0,41514.0,0.00611151]
[1644057339741,0.049926,41517.0,41514.0,0.06631951]